[Event "3. Open Bohumin 2020"]
[Site "Bohumin"]
[Date "2020.07.23"]
[Round "6.20"]
[White "Neumann, Filip"]
[Black "Zurawicki, Jakub"]
[Result "1-0"]
[ECO "A45"]
[WhiteElo "2044"]
[BlackElo "1806"]
[Annotator "NA"]
[PlyCount "63"]
[EventDate "2020.07.18"]
[EventType "swiss"]
[EventCountry "CZE"]
[SourceTitle "playchess.com"]
[Source "ChessBase"]
[SourceQuality "1"]
[TimeControl "40/5400+30:900+30"]

1. d4 {[%emt 0:00:00]} Nf6 {[%emt 0:00:00]} 2. Bf4 {[%emt 0:00:00]} e6 {[%emt 0:00:00]} 3. e3 {[%emt 0:00:40]} d5 {[%emt 0:00:11]} 4. Nf3 {[%emt 0:00:11]} c5 {[%emt 0:00:18]} 5. c3 {[%emt 0:00:07]} Nc6 {[%emt 0:00:25]} 6. Nbd2 {[%emt 0:00:06]} cxd4 {[%emt 0:02:12]} 7. exd4 {[%emt 0:00:28]} Bd6 {[%emt 0:00:33]} 8. Bg3 {[%emt 0:01:02]} O-O {[%emt 0:00:11]} 9. Bd3 {[%emt 0:00:07]} Re8 {[%emt 0:01:42]} 10. O-O {[%emt 0:00:20]} e5 {[%emt 0:00:58] B13: Caro-Kann: Exchange Variation and Panov-Botvinnik Attack.} 11. dxe5 {[%emt 0:00:21]} Bxe5 {[%emt 0:00:09]} 12. Bxe5 {[%emt 0:01:40]} Nxe5 {[%emt 0:00:03]} 13. Nxe5 {[%emt 0:01:05]} Rxe5 {[%emt 0:00:04]} 14. Nf3 {[%emt 0:07:28]} Bg4 {[%emt 0:03:16]} 15. Be2 {[%emt 0:02:11]} Bxf3 {[%emt 0:00:33]} 16. Bxf3 {[%emt 0:00:12] [#]} Qb6 $146 {[%emt 0:00:22]} ({Predecessor:} 16... Ne4 17. Qd4 Qe7 18. Rad1 b6 19. Bxe4 dxe4 20. Rfe1 Re8 21. Qd7 f5 22. Qxe7 R8xe7 {0-1 (36) Sarda,P (1474)-Cordioli,J (1889) Sao Bento do Sul 2019}) 17. Qb3 {[%emt 0:01:25]} Qxb3 $14 {[%emt 0:00:33]} 18. axb3 {[%emt 0:00:02]} Ne4 {[%emt 0:00:10]} 19. Rfe1 {[%emt 0:00:59]} f5 {[%emt 0:00:38]} 20. g3 {[%emt 0:03:21]} Ree8 {[%emt 0:08:22]} 21. Ra5 {[%emt 0:00:57]} Nf6 {[%emt 0:05:22]} 22. Rxe8+ {[%emt 0:00:23]} Rxe8 {[%emt 0:00:06]} 23. Bxd5+ {[%emt 0:01:25]} Nxd5 {[%emt 0:00:08]} 24. Rxd5 {[%emt 0:00:08]} g6 {[%emt 0:00:06]} 25. Rd7 {[%emt 0:00:06]} Re2 {[%emt 0:00:09]} 26. Rxb7 {[%emt 0:00:10]} Rxb2 {[%emt 0:00:05]} 27. c4 {[%emt 0:05:52]} Ra2 {[%emt 0:02:05]} 28. c5 {[%emt 0:00:44]} Rc2 {[%emt 0:00:07]} 29. b4 {[%emt 0:00:06]} a5 {[%emt 0:00:06]} 30. bxa5 {[%emt 0:00:19]} Rxc5 {[%emt 0:00:05]} 31. a6 {[%emt 0:00:04]} Ra5 {[%emt 0:00:05]} 32. a7 {[%emt 0:00:03]} 1-0

[Event "3. Open Bohumin 2020"]
[Site "Bohumin"]
[Date "2020.07.24"]
[Round "7.2"]
[White "Molenda, Marcin"]
[Black "Pulpan, Jakub"]
[Result "1-0"]
[ECO "D41"]
[WhiteElo "2363"]
[BlackElo "2410"]
[Annotator "RC"]
[PlyCount "63"]
[EventDate "2020.07.18"]
[EventType "swiss"]
[EventCountry "CZE"]
[SourceTitle "playchess.com"]
[Source "ChessBase"]
[SourceQuality "1"]
[TimeControl "40/5400+30:900+30"]

1. d4 {[%emt 0:00:00]} Nf6 {[%emt 0:00:00]} 2. c4 {[%emt 0:00:00]} e6 {[%emt 0:00:11]} 3. Nf3 {[%emt 0:00:00]} d5 {[%emt 0:00:13]} 4. Nc3 {[%emt 0:00:07]} c5 {[%emt 0:01:11]} 5. cxd5 {[%emt 0:00:23]} Nxd5 {[%emt 0:00:09]} 6. e4 {[%emt 0:00:17]} Nxc3 {[%emt 0:00:06]} 7. bxc3 {[%emt 0:00:04]} cxd4 {[%emt 0:00:06]} 8. cxd4 {[%emt 0:00:03]} Bb4+ {[%emt 0:00:11]} 9. Bd2 {[%emt 0:00:06]} Bxd2+ {[%emt 0:00:06]} 10. Qxd2 {[%emt 0:00:07]} O-O {[%emt 0:00:06]} 11. Bc4 {[%emt 0:00:16]} Nd7 {[%emt 0:00:22]} 12. O-O {[%emt 0:00:23]} b6 {[%emt 0:00:17]} 13. Rad1 {[%emt 0:00:18]} Bb7 {[%emt 0:00:13]} 14. Rfe1 {[%emt 0:00:05]} Rc8 {[%emt 0:00:12]} 15. Bb3 {[%emt 0:00:05]} Re8 {[%emt 0:00:59]} 16. d5 {[%emt 0:00:40]} exd5 {[%emt 0:03:24]} 17. exd5 {[%emt 0:00:06]} Qf6 {[%emt 0:05:08]} 18. Ng5 {[%emt 0:08:56]} h6 {[%emt 0:16:29]} 19. Ne4 {[%emt 0:04:42]} Qg6 {[%emt 0:09:16]} 20. Qf4 {[%emt 0:03:47]} Re5 {[%emt 0:08:09]} 21. Ba4 {[%emt 0:33:41]} Bxd5 {[%emt 0:09:15]} 22. Bxd7 {[%emt 0:01:26]} Rxe4 {[%emt 0:07:43]} 23. Rxe4 {[%emt 0:00:28]} Bxe4 {[%emt 0:00:08]} 24. f3 {[%emt 0:01:09]} Rc2 {[%emt 0:01:49]} 25. g4 {[%emt 0:01:17]} Bd3 {[%emt 0:12:15]} 26. Rxd3 {[%emt 0:00:55]} Qxd3 {[%emt 0:00:06]} 27. Qb8+ {[%emt 0:00:08]} Kh7 {[%emt 0:00:08]} 28. Bf5+ {[%emt 0:00:03]} Qxf5 {[%emt 0:00:06]} 29. gxf5 {[%emt 0:00:04]} Rxa2 {[%emt 0:00:56]} 30. f6 {[%emt 0:07:26]} Kg6 {[%emt 0:01:18]} 31. Qg3+ {[%emt 0:00:46]} Kxf6 {[%emt 0:00:06]} 32. Qd6+ {[%emt 0:00:02]} 1-0

[Event "3. Open Bohumin 2020"]
[Site "Bohumin"]
[Date "2020.07.24"]
[Round "7.4"]
[White "Kula, Dominik"]
[Black "Goluch, Piotr"]
[Result "0-1"]
[ECO "A05"]
[WhiteElo "2243"]
[BlackElo "2376"]
[Annotator "RC"]
[PlyCount "62"]
[EventDate "2020.07.18"]
[EventType "swiss"]
[EventCountry "CZE"]
[SourceTitle "playchess.com"]
[Source "ChessBase"]
[SourceQuality "1"]
[TimeControl "40/5400+30:900+30"]

1. Nf3 {[%emt 0:00:00]} Nf6 {[%emt 0:00:29]} 2. b3 {[%emt 0:00:00]} d5 {[%emt 0:01:38]} 3. Bb2 {[%emt 0:00:00]} Bg4 {[%emt 0:00:24]} 4. Ne5 {[%emt 0:02:04]} h5 {[%emt 0:04:03]} 5. g3 {[%emt 0:05:46]} Nbd7 {[%emt 0:00:48]} 6. Bg2 {[%emt 0:01:24]} e6 {[%emt 0:04:42]} 7. h3 {[%emt 0:02:30]} Bf5 {[%emt 0:00:20]} 8. d3 {[%emt 0:00:49]} Bd6 {[%emt 0:00:59]} 9. Nxd7 {[%emt 0:00:33]} Qxd7 {[%emt 0:00:47]} 10. Nd2 {[%emt 0:01:17]} h4 {[%emt 0:06:14]} 11. g4 {[%emt 0:06:25]} Bg6 {[%emt 0:00:05]} 12. e4 {[%emt 0:03:11]} dxe4 {[%emt 0:04:13]} 13. Nxe4 {[%emt 0:02:24]} Nxe4 {[%emt 0:03:51]} 14. dxe4 {[%emt 0:00:31]} Qc6 {[%emt 0:02:45]} 15. Qd3 {[%emt 0:04:17]} O-O-O {[%emt 0:00:53]} 16. Qc4 {[%emt 0:00:43]} Qxc4 {[%emt 0:00:41]} 17. bxc4 {[%emt 0:00:02]} Bb4+ {[%emt 0:00:05]} 18. c3 {[%emt 0:00:29]} Bc5 {[%emt 0:00:12]} 19. f3 {[%emt 0:07:10]} Rd3 {[%emt 0:05:01]} 20. Rd1 {[%emt 0:01:11]} Re3+ {[%emt 0:00:04]} 21. Kf1 {[%emt 0:02:09]} Rd8 {[%emt 0:00:07]} 22. Rd4 {[%emt 0:02:05]} e5 {[%emt 0:02:14]} 23. Rd5 {[%emt 0:01:53]} Rxd5 {[%emt 0:00:06]} 24. cxd5 {[%emt 0:00:10]} f6 {[%emt 0:00:28]} 25. c4 {[%emt 0:02:11]} Be8 {[%emt 0:00:05]} 26. Bc1 {[%emt 0:02:14]} Rc3 {[%emt 0:00:06]} 27. Ke2 {[%emt 0:00:08]} Rc2+ {[%emt 0:00:07]} 28. Bd2 {[%emt 0:00:04]} Bb4 {[%emt 0:01:51]} 29. Rd1 {[%emt 0:00:03]} Ba4 {[%emt 0:00:04]} 30. a3 {[%emt 0:00:17]} Ba5 {[%emt 0:03:10]} 31. Kd3 {[%emt 0:00:30]} Ra2 {[%emt 0:00:13]} 0-1

[Event "3. Open Bohumin 2020"]
[Site "Bohumin"]
[Date "2020.07.24"]
[Round "7.8"]
[White "Kolar, Stanislav"]
[Black "Mrazek, Lumir"]
[Result "0-1"]
[ECO "A04"]
[WhiteElo "2024"]
[BlackElo "2327"]
[Annotator "RC"]
[PlyCount "72"]
[EventDate "2020.07.18"]
[EventType "swiss"]
[EventCountry "CZE"]
[SourceTitle "playchess.com"]
[Source "ChessBase"]
[SourceQuality "1"]
[TimeControl "40/5400+30:900+30"]

1. Nf3 {[%emt 0:00:00]} c5 {[%emt 0:01:18]} 2. c4 {[%emt 0:00:55]} g6 {[%emt 0:00:35]} 3. Nc3 {[%emt 0:00:58]} Bg7 {[%emt 0:00:10]} 4. e3 {[%emt 0:00:55]} Nf6 {[%emt 0:00:22]} 5. d4 {[%emt 0:00:11]} O-O {[%emt 0:03:03]} 6. d5 {[%emt 0:00:42]} d6 {[%emt 0:05:52]} 7. e4 {[%emt 0:02:52]} Na6 {[%emt 0:02:23]} 8. h3 {[%emt 0:02:38]} Nc7 {[%emt 0:00:56]} 9. Be3 {[%emt 0:01:19]} a6 {[%emt 0:05:33]} 10. a4 {[%emt 0:01:17]} e5 {[%emt 0:04:08]} 11. Qd2 {[%emt 0:03:12]} Bd7 {[%emt 0:12:38]} 12. Bd3 {[%emt 0:02:31]} b5 {[%emt 0:02:03]} 13. b3 {[%emt 0:00:32]} b4 {[%emt 0:02:18]} 14. Ne2 {[%emt 0:00:58]} Nxe4 {[%emt 0:00:41]} 15. Bxe4 {[%emt 0:00:27]} f5 {[%emt 0:00:05]} 16. Bg5 {[%emt 0:09:49]} Qe8 {[%emt 0:01:54]} 17. Ng3 {[%emt 0:10:09]} Qf7 {[%emt 0:01:08]} 18. Bh6 {[%emt 0:03:49]} fxe4 {[%emt 0:02:48]} 19. Nxe4 {[%emt 0:01:07]} Ne8 {[%emt 0:02:47]} 20. Be3 {[%emt 0:13:47]} Bf5 {[%emt 0:02:01]} 21. Nfg5 {[%emt 0:02:14]} Qe7 {[%emt 0:02:37]} 22. f3 {[%emt 0:01:57]} Nf6 {[%emt 0:10:43]} 23. O-O-O {[%emt 0:02:49]} Bxe4 {[%emt 0:03:15]} 24. Nxe4 {[%emt 0:00:31]} Nxe4 {[%emt 0:03:38]} 25. fxe4 {[%emt 0:00:02]} Qh4 {[%emt 0:01:50]} 26. Rde1 {[%emt 0:05:50]} Rf7 {[%emt 0:05:18]} 27. Kb2 {[%emt 0:13:00]} Raf8 {[%emt 0:06:50]} 28. Ka2 {[%emt 0:00:35]} Bh6 {[%emt 0:04:46]} 29. Re2 {[%emt 0:05:05]} Kg7 {[%emt 0:01:25]} 30. Rhe1 {[%emt 0:01:31]} Bxe3 {[%emt 0:00:20]} 31. Qxe3 {[%emt 0:01:17]} Rf2 {[%emt 0:00:50]} 32. Kb2 {[%emt 0:02:43]} Rxe2+ {[%emt 0:00:33]} 33. Rxe2 {[%emt 0:00:02]} Qh6 {[%emt 0:03:49]} 34. Qxh6+ {[%emt 0:04:58]} Kxh6 {[%emt 0:00:15]} 35. Kc2 {[%emt 0:00:13]} Kg5 {[%emt 0:00:11]} 36. Kd2 {[%emt 0:03:29]} Kh4 {[%emt 0:04:35]} 0-1

[Event "3. Open Bohumin 2020"]
[Site "Bohumin"]
[Date "2020.07.24"]
[Round "7.13"]
[White "Dobrovolsky, Ladislav"]
[Black "Neumann, Filip"]
[Result "1/2-1/2"]
[ECO "B10"]
[WhiteElo "2271"]
[BlackElo "2044"]
[Annotator "ChessBase"]
[PlyCount "172"]
[EventDate "2020.07.18"]
[EventType "swiss"]
[EventCountry "CZE"]
[SourceTitle "playchess.com"]
[Source "ChessBase"]
[SourceQuality "1"]
[TimeControl "40/5400+30:900+30"]

1. c4 {[%emt 0:00:00]} c6 {[%emt 0:00:09]} 2. e4 {[%emt 0:00:00]} d5 {[%emt 0:00:18]} 3. exd5 {[%emt 0:00:36]} cxd5 {[%emt 0:00:07]} 4. cxd5 {[%emt 0:00:27]} Nf6 {[%emt 0:00:54]} 5. Bb5+ {[%emt 0:00:13]} Bd7 {[%emt 0:00:33]} 6. Bc4 {[%emt 0:00:21]} Bf5 {[%emt 0:03:50]} 7. Nc3 {[%emt 0:01:38]} Nbd7 {[%emt 0:00:59]} 8. Nf3 {[%emt 0:04:11]} a6 {[%emt 0:07:11]} 9. a4 {[%emt 0:09:05]} Nb6 {[%emt 0:03:01]} 10. Qb3 {[%emt 0:06:23]} Nxc4 {[%emt 0:05:29]} 11. Qxc4 {[%emt 0:00:02]} g6 {[%emt 0:04:29]} 12. O-O {[%emt 0:01:30]} Bg7 {[%emt 0:01:52]} 13. d4 {[%emt 0:01:27]} Rc8 {[%emt 0:05:59]} 14. Qb3 {[%emt 0:01:05]} Qc7 {[%emt 0:00:36]} 15. Ne5 {[%emt 0:01:53]} O-O {[%emt 0:08:22]} 16. h3 {[%emt 0:04:37]} Ne4 {[%emt 0:12:58]} 17. Be3 {[%emt 0:14:32]} Nxc3 {[%emt 0:03:07]} 18. bxc3 {[%emt 0:00:03]} Bxe5 {[%emt 0:01:42]} 19. dxe5 {[%emt 0:00:17]} Qxc3 {[%emt 0:00:11]} 20. Qxb7 {[%emt 0:10:41]} Qxe5 {[%emt 0:00:34]} 21. Rad1 {[%emt 0:02:52]} Rfd8 {[%emt 0:03:46]} 22. Bb6 {[%emt 0:03:19]} Qb2 {[%emt 0:02:40]} 23. a5 {[%emt 0:01:10]} Qb5 {[%emt 0:02:41]} 24. Rfe1 {[%emt 0:01:30]} Rb8 {[%emt 0:07:17]} 25. Qxe7 {[%emt 0:08:59]} Rxd5 {[%emt 0:00:54]} 26. Qf6 {[%emt 0:04:17]} Rxd1 {[%emt 0:06:02]} 27. Rxd1 {[%emt 0:00:38]} Qe2 {[%emt 0:00:12]} 28. Rd8+ {[%emt 0:07:06]} Rxd8 {[%emt 0:00:12]} 29. Qxd8+ {[%emt 0:00:01]} Kg7 {[%emt 0:00:11]} 30. Bd4+ {[%emt 0:00:07]} Kh6 {[%emt 0:00:28]} 31. Qh4+ {[%emt 0:00:19]} Qh5 {[%emt 0:00:10]} 32. Qf4+ {[%emt 0:00:04]} g5 {[%emt 0:00:19]} 33. Qxf5 {[%emt 0:01:21]} Qd1+ {[%emt 0:00:05]} 34. Kh2 {[%emt 0:00:06]} Qxd4 {[%emt 0:00:04]} 35. Qxf7 {[%emt 0:00:29]} Qe5+ {[%emt 0:01:43]} 36. g3 {[%emt 0:00:11]} Qd6 {[%emt 0:00:13]} 37. Qa7 {[%emt 0:04:05]} Qd3 {[%emt 0:00:21]} 38. Qe3 {[%emt 0:00:26]} Qf5 {[%emt 0:01:31]} 39. Qb6+ {[%emt 0:06:36]} Kg7 {[%emt 0:00:14]} 40. Kg2 {[%emt 0:00:17]} Qd5+ {[%emt 0:00:50]} 41. Kg1 {[%emt 0:15:38]} Qd1+ {[%emt 0:15:17]} 42. Kh2 {[%emt 0:00:13]} Qd3 {[%emt 0:00:23]} 43. Qc7+ {[%emt 0:02:19]} Kg6 {[%emt 0:01:26]} 44. Qe5 {[%emt 0:00:35]} Qf1 {[%emt 0:01:37]} 45. Qc5 {[%emt 0:00:35]} h6 {[%emt 0:00:34]} 46. Qd6+ {[%emt 0:04:42]} Kg7 {[%emt 0:00:51]} 47. Qe5+ {[%emt 0:00:17]} Kg6 {[%emt 0:00:17]} 48. Qe4+ {[%emt 0:00:06]} Kg7 {[%emt 0:00:04]} 49. Qd4+ {[%emt 0:00:10]} Kg6 {[%emt 0:00:12]} 50. h4 {[%emt 0:00:37]} gxh4 {[%emt 0:01:07]} 51. Qg4+ {[%emt 0:00:21]} Kh7 {[%emt 0:00:23]} 52. Qf5+ {[%emt 0:00:11]} Kg7 {[%emt 0:00:12]} 53. gxh4 {[%emt 0:00:03]} Qe2 {[%emt 0:00:53]} 54. h5 {[%emt 0:00:13]} Qd2 {[%emt 0:00:41]} 55. Kg2 {[%emt 0:01:01]} Qd6 {[%emt 0:00:33]} 56. Kf3 {[%emt 0:00:28]} Qc6+ {[%emt 0:00:24]} 57. Ke2 {[%emt 0:02:23]} Qc4+ {[%emt 0:00:44]} 58. Kd2 {[%emt 0:00:00]} Qd4+ {[%emt 0:00:00]} 59. Ke2 {[%emt 0:00:00]} Qc4+ {[%emt 0:00:00]} 60. Ke3 {[%emt 0:00:00]} Qc1+ {[%emt 0:00:00]} 61. Kf3 {[%emt 0:00:00]} Qc6+ {[%emt 0:00:00]} 62. Kg3 {[%emt 0:00:00]} Qc3+ {[%emt 0:00:00]} 63. Kh4 {[%emt 0:00:00]} Qc6 {[%emt 0:00:00]} 64. Qe5+ {[%emt 0:00:00]} Kh7 {[%emt 0:00:00]} 65. Kg3 {[%emt 0:00:00]} Kg8 {[%emt 0:00:00]} 66. Qb8+ {[%emt 0:00:00]} Kh7 {[%emt 0:00:00]} 67. Qa7+ {[%emt 0:00:00]} Kg8 {[%emt 0:00:00]} 68. Qb6 {[%emt 0:00:00]} Qc3+ {[%emt 0:00:00]} 69. Kg4 {[%emt 0:00:00]} Qc4+ {[%emt 0:00:00]} 70. Kh3 {[%emt 0:00:00]} Qd3+ {[%emt 0:00:00]} 71. Kh2 {[%emt 0:00:00]} Kg7 {[%emt 0:00:00]} 72. Qe6 {[%emt 0:00:00]} Kh7 {[%emt 0:00:00]} 73. Qe7+ {[%emt 0:00:32]} Kh8 {[%emt 0:00:00]} 74. Qe5+ {[%emt 0:01:07]} Kh7 {[%emt 0:00:00]} 75. Kg2 {[%emt 0:00:17]} Qd7 {[%emt 0:03:36]} 76. Kg3 {[%emt 0:01:02]} Qc6 {[%emt 0:00:55]} 77. f3 {[%emt 0:00:15]} Kg8 {[%emt 0:00:36]} 78. Kg4 {[%emt 0:00:31]} Qc4+ {[%emt 0:01:36]} 79. Kf5 {[%emt 0:01:50]} Qf7+ {[%emt 0:00:06]} 80. Kg4 {[%emt 0:00:47]} Qc4+ {[%emt 0:00:04]} 81. f4 {[%emt 0:00:28]} Qc6 {[%emt 0:00:58]} 82. Kf5 {[%emt 0:01:07]} Kf7 {[%emt 0:00:44]} 83. Qe4 {[%emt 0:02:08]} Qd7+ {[%emt 0:00:43]} 84. Ke5 {[%emt 0:00:07]} Qe7+ {[%emt 0:00:01]} 85. Kd4 {[%emt 0:00:25]} Qb4+ {[%emt 0:00:05]} 86. Ke3 {[%emt 0:00:16]} Qe1+ {[%emt 0:00:02]} 1/2-1/2

[Event "3. Open Bohumin 2020"]
[Site "Bohumin"]
[Date "2020.07.24"]
[Round "7.16"]
[White "Panek, Bartosz"]
[Black "Starosta, Martyna"]
[Result "1-0"]
[ECO "A05"]
[WhiteElo "1988"]
[BlackElo "2079"]
[Annotator "ChessBase"]
[PlyCount "113"]
[EventDate "2020.07.18"]
[EventType "swiss"]
[EventCountry "CZE"]
[SourceTitle "playchess.com"]
[Source "ChessBase"]
[SourceQuality "1"]
[TimeControl "40/5400+30:900+30"]

1. Nf3 {[%emt 0:00:00]} Nf6 {[%emt 0:00:00]} 2. b3 {[%emt 0:00:00]} g6 {[%emt 0:00:32]} 3. Bb2 {[%emt 0:00:00]} Bg7 {[%emt 0:00:08]} 4. d4 {[%emt 0:00:00]} c5 {[%emt 0:01:23]} 5. e3 {[%emt 0:00:08]} O-O {[%emt 0:00:54]} 6. dxc5 {[%emt 0:00:07]} Qa5+ {[%emt 0:00:52]} 7. c3 {[%emt 0:00:17]} Nc6 {[%emt 0:07:46]} 8. b4 {[%emt 0:04:00]} Qc7 {[%emt 0:00:50]} 9. Be2 {[%emt 0:02:24]} a5 {[%emt 0:03:26]} 10. a3 {[%emt 0:04:24]} h5 {[%emt 0:05:23]} 11. O-O {[%emt 0:07:13]} Ng4 {[%emt 0:06:16]} 12. h3 {[%emt 0:05:11]} Nh6 {[%emt 0:02:13]} 13. Qb3 {[%emt 0:03:36]} b6 {[%emt 0:02:43]} 14. cxb6 {[%emt 0:01:21]} Qxb6 {[%emt 0:00:18]} 15. Nbd2 {[%emt 0:00:14]} a4 {[%emt 0:01:10]} 16. Qc2 {[%emt 0:04:55]} Bb7 {[%emt 0:04:09]} 17. c4 {[%emt 0:05:35]} Bxb2 {[%emt 0:03:50]} 18. Qxb2 {[%emt 0:01:07]} Nf5 {[%emt 0:01:14]} 19. Bd3 {[%emt 0:07:37]} Ng7 {[%emt 0:02:34]} 20. c5 {[%emt 0:04:45]} Qc7 {[%emt 0:01:44]} 21. Nc4 {[%emt 0:02:05]} Nd8 {[%emt 0:04:42]} 22. Qe5 {[%emt 0:18:01]} Nde6 {[%emt 0:12:28]} 23. Qxc7 {[%emt 0:02:43]} Nxc7 {[%emt 0:00:02]} 24. Nd4 {[%emt 0:03:43]} Rfd8 {[%emt 0:05:49]} 25. Nb6 {[%emt 0:04:12]} Ra7 {[%emt 0:01:06]} 26. Rfc1 {[%emt 0:05:26]} e5 {[%emt 0:02:00]} 27. Nb5 {[%emt 0:00:43]} Nxb5 {[%emt 0:00:08]} 28. Bxb5 {[%emt 0:00:02]} Bc6 {[%emt 0:01:06]} 29. Bxc6 {[%emt 0:00:18]} dxc6 {[%emt 0:00:01]} 30. Rd1 {[%emt 0:00:11]} Re8 {[%emt 0:01:44]} 31. Rd6 {[%emt 0:00:39]} Re6 {[%emt 0:00:22]} 32. Rad1 {[%emt 0:00:49]} Kf8 {[%emt 0:01:49]} 33. Rxe6 {[%emt 0:01:06]} Nxe6 {[%emt 0:00:08]} 34. Nd7+ {[%emt 0:00:14]} Ke7 {[%emt 0:00:21]} 35. Nxe5 {[%emt 0:00:11]} Rc7 {[%emt 0:00:27]} 36. Rd6 {[%emt 0:00:29]} Nd8 {[%emt 0:00:25]} 37. Kf1 {[%emt 0:00:36]} Ke8 {[%emt 0:01:09]} 38. Kg1 {[%emt 0:02:02]} Ke7 {[%emt 0:00:19]} 39. Kh2 {[%emt 0:00:05]} Ke8 {[%emt 0:00:22]} 40. Kg3 {[%emt 0:00:06]} Ke7 {[%emt 0:00:59]} 41. Kh4 {[%emt 0:15:07]} Ke8 {[%emt 0:15:59]} 42. g4 {[%emt 0:00:10]} hxg4 {[%emt 0:00:22]} 43. Kxg4 {[%emt 0:00:04]} Ke7 {[%emt 0:00:52]} 44. h4 {[%emt 0:01:27]} Ke8 {[%emt 0:00:08]} 45. f4 {[%emt 0:00:58]} Rc8 {[%emt 0:04:51]} 46. f5 {[%emt 0:00:52]} gxf5+ {[%emt 0:00:09]} 47. Kxf5 {[%emt 0:00:03]} Kf8 {[%emt 0:00:58]} 48. Kf6 {[%emt 0:00:37]} Kg8 {[%emt 0:00:20]} 49. h5 {[%emt 0:00:27]} Kf8 {[%emt 0:00:31]} 50. h6 {[%emt 0:01:15]} Kg8 {[%emt 0:00:09]} 51. e4 {[%emt 0:00:10]} Kh7 {[%emt 0:01:06]} 52. Nxf7 {[%emt 0:00:12]} Nxf7 {[%emt 0:00:20]} 53. Kxf7 {[%emt 0:00:07]} Rg8 {[%emt 0:00:30]} 54. e5 {[%emt 0:03:52]} Rg3 {[%emt 0:00:29]} 55. e6 {[%emt 0:00:11]} Rf3+ {[%emt 0:00:04]} 56. Ke7 {[%emt 0:00:48]} Rxa3 {[%emt 0:00:16]} 57. Kd7 {[%emt 0:00:10]} 1-0

[Event "3. Open Bohumin 2020"]
[Site "Bohumin"]
[Date "2020.07.24"]
[Round "7.19"]
[White "Cempel, Jaroslav"]
[Black "Stehlik, Jiri"]
[Result "0-1"]
[ECO "B12"]
[WhiteElo "2049"]
[BlackElo "1855"]
[Annotator "NA"]
[PlyCount "65"]
[EventDate "2020.07.18"]
[EventType "swiss"]
[EventCountry "CZE"]
[SourceTitle "playchess.com"]
[Source "ChessBase"]
[SourceQuality "1"]
[TimeControl "40/5400+30:900+30"]

1. e4 {[%emt 0:00:00]} c6 {[%emt 0:17:06]} 2. d4 {[%emt 0:00:46]} g6 {[%emt 0:00:41]} 3. h4 {[%emt 0:00:09]} h5 {[%emt 0:03:01]} 4. c4 {[%emt 0:02:41]} d6 {[%emt 0:01:18] [#]} 5. f4 $146 {[%emt 0:00:18]} ({Predecessor:} 5. d5 Bg7 6. Nc3 Bxc3+ 7. bxc3 Nf6 8. f3 Qa5 9. Ne2 Nbd7 10. Bd2 Nb6 11. Nd4 {1-0 (39) Sulskis,S (2582)-Dumitrache,D (2493) Cappelle-la-Grande 2004}) 5... Nf6 {[%emt 0:02:20]} 6. Nc3 {[%emt 0:00:15] B06: Modern Defence.} Bg7 {[%emt 0:00:50]} 7. Nf3 {[%emt 0:00:19]} a6 {[%emt 0:04:23]} 8. a4 {[%emt 0:06:04]} a5 {[%emt 0:00:56]} 9. Bd3 {[%emt 0:01:26]} Na6 {[%emt 0:00:43]} 10. Qe2 {[%emt 0:02:19]} Ng4 {[%emt 0:07:52]} 11. e5 {[%emt 0:03:42]} Nc7 {[%emt 0:07:16]} 12. Bd2 {[%emt 0:05:12]} Bf5 {[%emt 0:03:09]} 13. Bxf5 {[%emt 0:01:36]} gxf5 {[%emt 0:00:02]} 14. O-O-O {[%emt 0:00:27]} d5 {[%emt 0:01:00]} 15. Qd3 {[%emt 0:02:36]} Nf2 {[%emt 0:01:46]} 16. Qxf5 {[%emt 0:00:09]} e6 {[%emt 0:00:53]} 17. Qc2 {[%emt 0:00:14]} Qd7 {[%emt 0:03:56]} 18. c5 {[%emt 0:06:24]} Kd8 {[%emt 0:02:43]} 19. Rhf1 {[%emt 0:00:34]} Nxd1 {[%emt 0:00:04]} 20. Nxd1 {[%emt 0:00:13]} Ne8 {[%emt 0:02:40]} 21. f5 {[%emt 0:00:21]} exf5 $18 {[%emt 0:03:10]} 22. Bg5+ {[%emt 0:00:44]} Kc8 {[%emt 0:02:10]} 23. Bf6 {[%emt 0:01:21]} Bh6+ {[%emt 0:06:22]} 24. Kb1 {[%emt 0:01:22]} Rg8 {[%emt 0:01:36]} 25. Ng5 {[%emt 0:00:29]} Nxf6 {[%emt 0:00:53]} 26. exf6 {[%emt 0:00:18]} Bxg5 {[%emt 0:00:20]} 27. hxg5 {[%emt 0:00:13]} Rxg5 {[%emt 0:00:06]} 28. Ne3 {[%emt 0:00:27]} Kc7 {[%emt 0:02:50]} 29. Nxf5 {[%emt 0:01:25]} Rxf5 {[%emt 0:07:57]} 30. Qxf5 {[%emt 0:01:38]} Qxf5+ {[%emt 0:01:51]} 31. Rxf5 {[%emt 0:00:09]} Kd7 {[%emt 0:00:42]} 32. Re5 {[%emt 0:00:51]} Re8 {[%emt 0:01:11]} 33. Rxh5 {[%emt 0:00:19]} 0-1

[Event "3. Open Bohumin 2020"]
[Site "Bohumin"]
[Date "2020.07.25"]
[Round "8.8"]
[White "Galuszka, Tomasz"]
[Black "Weinzettl, Ernst"]
[Result "0-1"]
[ECO "C07"]
[WhiteElo "2255"]
[BlackElo "2166"]
[Annotator "RC"]
[PlyCount "50"]
[EventDate "2020.07.18"]
[EventType "swiss"]
[EventCountry "CZE"]
[SourceTitle "playchess.com"]
[Source "ChessBase"]
[SourceQuality "1"]
[TimeControl "40/5400+30:900+30"]

1. e4 {[%emt 0:00:00]} e6 {[%emt 0:00:00]} 2. d4 {[%emt 0:00:00]} d5 {[%emt 0:00:06]} 3. Nd2 {[%emt 0:00:00]} c5 {[%emt 0:00:27]} 4. exd5 {[%emt 0:00:00]} Qxd5 {[%emt 0:00:34]} 5. Ngf3 {[%emt 0:00:59]} cxd4 {[%emt 0:00:15]} 6. Bc4 {[%emt 0:00:50]} Qd7 {[%emt 0:00:39]} 7. Qe2 {[%emt 0:03:13]} a6 {[%emt 0:01:07]} 8. Nb3 {[%emt 0:01:57]} Nc6 {[%emt 0:01:00]} 9. Bd2 {[%emt 0:02:03]} Nf6 {[%emt 0:02:57]} 10. O-O-O {[%emt 0:03:59]} b5 {[%emt 0:09:17]} 11. Bd3 {[%emt 0:00:17]} Bb7 {[%emt 0:00:08]} 12. Kb1 {[%emt 0:07:30]} Be7 {[%emt 0:05:14]} 13. Rhg1 {[%emt 0:08:22]} Rd8 {[%emt 0:17:17]} 14. g4 {[%emt 0:03:17]} Qc7 {[%emt 0:03:10]} 15. g5 {[%emt 0:08:02]} Nd5 {[%emt 0:01:53]} 16. Rg4 {[%emt 0:01:41]} Ncb4 {[%emt 0:03:26]} 17. h4 {[%emt 0:09:01]} Nxd3 {[%emt 0:03:14]} 18. Qxd3 {[%emt 0:01:36]} Nc3+ {[%emt 0:04:36]} 19. bxc3 {[%emt 0:18:27]} dxc3 {[%emt 0:00:10]} 20. Nfd4 {[%emt 0:00:20]} cxd2 {[%emt 0:00:14]} 21. g6 {[%emt 0:02:01]} hxg6 {[%emt 0:01:21]} 22. Rxg6 {[%emt 0:05:27]} Qf4 {[%emt 0:09:26]} 23. Rxg7 {[%emt 0:06:40]} Bf6 {[%emt 0:04:12]} 24. Rg3 {[%emt 0:01:24]} Bxd4 {[%emt 0:04:46]} 25. Rdg1 {[%emt 0:01:06]} Bg7 {[%emt 0:05:37]} 0-1